[Event "Swedish Championship O65 2022"]
[Site "Uppsala"]
[Date "2022.07.10"]
[Round "9.1"]
[White "Gillefalk, Bjorn"]
[Black "Bellon Lopez, Juan Manuel"]
[Result "0-1"]
[ECO "B13"]
[WhiteElo "2047"]
[BlackElo "2330"]
[Annotator "RC"]
[PlyCount "46"]
[EventDate "2022.07.01"]
[EventType "tourn"]
[EventCountry "SWE"]
[SourceTitle "playchess.com"]
[Source "ChessBase"]
[SourceQuality "1"]
[TimeControl "40/5400+30:1800+30"]

1. e4 {[%emt 0:00:08]} c6 {[%emt 0:00:07]} 2. d4 {[%emt 0:01:33]} d5 {[%emt 0:00:08]} 3. exd5 {[%emt 0:00:04]} cxd5 {[%emt 0:00:05]} 4. Bd3 {[%emt 0:00:15]} Nc6 {[%emt 0:00:11]} 5. c3 {[%emt 0:00:09]} g6 {[%emt 0:00:05]} 6. Bf4 {[%emt 0:03:03]} Bg7 {[%emt 0:00:41]} 7. Nf3 {[%emt 0:01:51]} Nh6 {[%emt 0:03:46]} 8. Qd2 {[%emt 0:04:55]} Nf5 {[%emt 0:02:15]} 9. O-O {[%emt 0:02:41]} O-O {[%emt 0:01:18]} 10. Na3 {[%emt 0:04:23]} f6 {[%emt 0:01:32]} 11. Rfe1 {[%emt 0:08:46]} Nd6 {[%emt 0:09:22]} 12. c4 {[%emt 0:06:13]} dxc4 {[%emt 0:03:37]} 13. Nxc4 {[%emt 0:00:07]} Nf7 {[%emt 0:13:23]} 14. h3 {[%emt 0:07:57]} e6 {[%emt 0:13:24]} 15. Bc2 {[%emt 0:09:32]} Ne7 {[%emt 0:02:59]} 16. Rad1 {[%emt 0:08:09]} Nd5 {[%emt 0:01:11]} 17. Bh2 {[%emt 0:00:39]} b5 {[%emt 0:03:41]} 18. Ne3 {[%emt 0:02:15]} Bb7 {[%emt 0:00:11]} 19. Nxd5 {[%emt 0:00:57]} Bxd5 {[%emt 0:00:10]} 20. Be4 {[%emt 0:00:44]} Re8 {[%emt 0:04:36]} 21. Rc1 {[%emt 0:02:20]} Bxe4 {[%emt 0:02:35]} 22. Rxe4 {[%emt 0:00:04]} Bh6 {[%emt 0:00:38]} 23. Bf4 {[%emt 0:00:22]} Nd6 {[%emt 0:01:00]} 0-1

[Event "Swedish Championship O65 2022"]
[Site "Uppsala"]
[Date "2022.07.10"]
[Round "9.2"]
[White "Marttala, Thomas"]
[Black "Lagerborg, Krister"]
[Result "1-0"]
[ECO "B87"]
[WhiteElo "2164"]
[BlackElo "2138"]
[Annotator "RC"]
[PlyCount "87"]
[EventDate "2022.07.01"]
[EventType "tourn"]
[EventCountry "SWE"]
[SourceTitle "playchess.com"]
[Source "ChessBase"]
[SourceQuality "1"]
[TimeControl "40/5400+30:1800+30"]

1. e4 {[%emt 0:00:43]} c5 {[%emt 0:00:07]} 2. Nf3 {[%emt 0:00:28]} d6 {[%emt 0:00:13]} 3. d4 {[%emt 0:00:36]} cxd4 {[%emt 0:00:06]} 4. Nxd4 {[%emt 0:00:41]} Nf6 {[%emt 0:00:09]} 5. Nc3 {[%emt 0:01:40]} a6 {[%emt 0:00:07]} 6. Bc4 {[%emt 0:03:15]} e6 {[%emt 0:00:40]} 7. Bb3 {[%emt 0:01:52]} b5 {[%emt 0:02:20]} 8. Bg5 {[%emt 0:08:16]} Nbd7 {[%emt 0:05:24]} 9. O-O {[%emt 0:02:38]} Nc5 {[%emt 0:07:43]} 10. Re1 {[%emt 0:01:37]} Bb7 {[%emt 0:01:32]} 11. Bd5 {[%emt 0:02:29]} b4 {[%emt 0:10:24]} 12. Bxb7 {[%emt 0:01:54]} Nxb7 {[%emt 0:00:07]} 13. Nd5 {[%emt 0:03:01]} exd5 {[%emt 0:07:37]} 14. exd5+ {[%emt 0:05:18]} Kd7 {[%emt 0:00:21]} 15. Nc6 {[%emt 0:01:10]} Qb6 {[%emt 0:00:54]} 16. Bxf6 {[%emt 0:01:58]} gxf6 {[%emt 0:00:09]} 17. Qg4+ {[%emt 0:26:27]} Kc7 {[%emt 0:00:30]} 18. Re4 {[%emt 0:00:47]} a5 {[%emt 0:05:52]} 19. Rae1 {[%emt 0:00:33]} Qb5 {[%emt 0:02:17]} 20. Qh5 {[%emt 0:22:07]} Nd8 {[%emt 0:03:46]} 21. b3 {[%emt 0:00:42]} Nxc6 {[%emt 0:11:23]} 22. Rc4 {[%emt 0:00:39]} Qxc4 {[%emt 0:00:12]} 23. Qxf7+ {[%emt 0:00:39]} Kb6 {[%emt 0:03:41]} 24. bxc4 {[%emt 0:00:28]} Ne5 {[%emt 0:01:02]} 25. c5+ {[%emt 0:06:25]} Ka6 {[%emt 0:09:43]} 26. Qc7 {[%emt 0:03:33]} dxc5 {[%emt 0:01:55]} 27. f4 {[%emt 0:00:15]} Nc4 {[%emt 0:08:19]} 28. Re6+ {[%emt 0:00:59]} Bd6 {[%emt 0:01:27]} 29. Qc6+ {[%emt 0:01:02]} Ka7 {[%emt 0:00:20]} 30. Rxd6 {[%emt 0:00:18]} Nxd6 {[%emt 0:00:15]} 31. Qxc5+ {[%emt 0:00:15]} Kb7 {[%emt 0:00:25]} 32. Qc6+ {[%emt 0:00:30]} Ka7 {[%emt 0:00:23]} 33. Qc5+ {[%emt 0:00:27]} Kb7 {[%emt 0:00:10]} 34. Qc6+ {[%emt 0:00:07]} Ka7 {[%emt 0:00:06]} 35. Qxd6 {[%emt 0:00:11]} Rhf8 {[%emt 0:01:45]} 36. Qc7+ {[%emt 0:01:00]} Ka6 {[%emt 0:02:48]} 37. Qc6+ {[%emt 0:00:08]} Ka7 {[%emt 0:00:04]} 38. Qb5 {[%emt 0:00:07]} Rab8 {[%emt 0:04:33]} 39. Qxa5+ {[%emt 0:00:30]} Kb7 {[%emt 0:00:07]} 40. Qxb4+ {[%emt 0:00:19]} Ka7 {[%emt 0:00:33]} 41. Qa5+ {[%emt 0:31:29]} Kb7 {[%emt 0:30:08]} 42. c4 {[%emt 0:02:14]} Rfd8 {[%emt 0:02:08]} 43. c5 {[%emt 0:01:09]} Ra8 {[%emt 0:04:26]} 44. c6+ {[%emt 0:00:17]} 1-0

[Event "Swedish Championship O65 2022"]
[Site "Uppsala"]
[Date "2022.07.10"]
[Round "9.3"]
[White "Soderberg, Per"]
[Black "Malmdin, Nils-Ake"]
[Result "0-1"]
[ECO "B01"]
[WhiteElo "2111"]
[BlackElo "2124"]
[Annotator "NA RC"]
[PlyCount "64"]
[EventDate "2022.07.01"]
[EventType "tourn"]
[EventCountry "SWE"]
[SourceTitle "playchess.com"]
[Source "ChessBase"]
[SourceQuality "1"]
[TimeControl "40/5400+30:1800+30"]

1. e4 {[%emt 0:00:02]} d5 {[%emt 0:00:36]} 2. exd5 {[%emt 0:00:28]} Nf6 {[%emt 0:00:13]} 3. d4 {[%emt 0:00:09]} Nxd5 {[%emt 0:00:16]} 4. Nf3 {[%emt 0:00:15]} g6 {[%emt 0:00:20]} 5. c4 {[%emt 0:02:31]} Nb6 {[%emt 0:02:04]} 6. Be2 {[%emt 0:01:31]} Bg7 {[%emt 0:00:12]} 7. Nc3 {[%emt 0:00:28]} O-O {[%emt 0:04:18]} 8. Bf4 {[%emt 0:05:28]} Bg4 {[%emt 0:10:25]} 9. c5 {[%emt 0:16:08]} Nd5 {[%emt 0:00:32]} 10. Nxd5 {[%emt 0:00:11]} Qxd5 {[%emt 0:00:10]} 11. Bxc7 {[%emt 0:02:33]} Nc6 {[%emt 0:01:26]} 12. O-O {[%emt 0:01:01]} Rac8 {[%emt 0:02:41]} 13. Be5 {[%emt 0:04:24]} Nxe5 {[%emt 0:02:14]} 14. Nxe5 {[%emt 0:00:31]} Bxe2 {[%emt 0:00:35]} 15. Qxe2 {[%emt 0:00:04]} Qxd4 {[%emt 0:00:43]} 16. Nd3 {[%emt 0:00:33]} e5 {[%emt 0:02:11]} 17. Rfe1 {[%emt 0:01:07]} Rfe8 {[%emt 0:02:14]} 18. Red1 {[%emt 0:09:36]} e4 {[%emt 0:05:14]} 19. Ne1 {[%emt 0:00:20]} Qxc5 {[%emt 0:01:43]} 20. Rac1 {[%emt 0:00:51]} Qb4 {[%emt 0:09:53]} 21. b3 {[%emt 0:00:39]} f5 {[%emt 0:08:45]} 22. Nc2 {[%emt 0:01:04]} Qc3 {[%emt 0:00:26]} 23. g3 {[%emt 0:02:03]} Qb2 {[%emt 0:02:31]} 24. Qb5 {[%emt 0:04:02]} Rf8 {[%emt 0:05:26]} 25. Qxb7 {[%emt 0:03:14]} Rxc2 {[%emt 0:02:13]} 26. Rxc2 {[%emt 0:00:07]} Qxc2 {[%emt 0:00:16]} 27. Rd7 {[%emt 0:00:10]} Qb2 {[%emt 0:00:39]} 28. Qxa7 {[%emt 0:00:35]} h6 {[%emt 0:05:56]} 29. b4 {[%emt 0:01:32]} f4 {[%emt 0:01:55]} 30. gxf4 {[%emt 0:01:06]} Rxf4 {[%emt 0:00:36]} 31. h3 {[%emt 0:02:50]} Rf5 {[%emt 0:02:25]} 32. a4 {[%emt 0:02:47]} Qa1+ {[%emt 0:00:51]} 0-1

[Event "Swedish Championship O65 2022"]
[Site "Uppsala"]
[Date "2022.07.10"]
[Round "9.4"]
[White "Hedin, Gunnar"]
[Black "Dolata, Henryk"]
[Result "1-0"]
[ECO "D36"]
[WhiteElo "2051"]
[BlackElo "2055"]
[Annotator "NA RC"]
[PlyCount "43"]
[EventDate "2022.07.01"]
[EventType "tourn"]
[EventCountry "SWE"]
[SourceTitle "playchess.com"]
[Source "ChessBase"]
[SourceQuality "1"]
[TimeControl "40/5400+30:1800+30"]

1. d4 {[%emt 0:01:02]} e6 {[%emt 0:00:09]} 2. c4 {[%emt 0:00:50]} d5 {[%emt 0:00:10]} 3. Nc3 {[%emt 0:00:44]} Nf6 {[%emt 0:00:12]} 4. cxd5 {[%emt 0:00:20]} exd5 {[%emt 0:00:17]} 5. Bg5 {[%emt 0:00:19]} Be7 {[%emt 0:00:48]} 6. e3 {[%emt 0:00:56]} O-O {[%emt 0:00:43]} 7. Bd3 {[%emt 0:01:11]} c6 {[%emt 0:00:46]} 8. Qc2 {[%emt 0:01:29]} Nbd7 {[%emt 0:00:15]} 9. Nf3 {[%emt 0:00:57]} Re8 {[%emt 0:01:18]} 10. O-O {[%emt 0:00:31]} Nf8 {[%emt 0:03:18]} 11. h3 {[%emt 0:01:25]} g6 {[%emt 0:02:24]} 12. Rab1 {[%emt 0:18:00]} Ne6 {[%emt 0:00:27]} 13. Bxf6 {[%emt 0:00:18]} Bxf6 {[%emt 0:00:02]} 14. b4 {[%emt 0:00:31]} a6 {[%emt 0:00:54]} 15. Na4 {[%emt 0:03:08]} Be7 {[%emt 0:15:10]} 16. Nc5 {[%emt 0:06:15]} Bd6 {[%emt 0:01:23]} 17. Nxe6 {[%emt 0:24:23]} Bxe6 {[%emt 0:04:55]} 18. Rfc1 {[%emt 0:05:15]} h5 {[%emt 0:20:50]} 19. Bxg6 {[%emt 0:03:08]} fxg6 {[%emt 0:00:27]} 20. Qxg6+ {[%emt 0:00:09]} Kf8 {[%emt 0:00:08]} 21. Ng5 {[%emt 0:00:46]} Bg8 {[%emt 0:01:08]} 22. Qh6+ {[%emt 0:00:41]} 1-0